Cogmind - Beta 10.1 @@@ ROGUE MODE // 2020.10.04 @ 20:57:45 Player: Welles Greysong Result: Destroyed by G-47 Trooper with Particle Gun Performance ------------- Evolutions (1) 500 Regions Visited (3) 600 Robots Destroyed (19) 95 Value Destroyed (266) 266 Prototype IDs (0) 0 Alien Tech Used (0) 0 Bonus (0) 0 TOTAL SCORE: 1461 Bonus ------- None Cogmind --------- Core Integrity 0/400 Matter 290/300 Energy 100/100 System Corruption 2% Temperature Cool (9) Movement Core (300) Ox5 Location -9/Storage Parts ------- > --- POWER (1) -------- (None) > --- PROPULSION (2) --- Aluminum Leg > --- UTILITY (3) ------ Medium Storage Unit Medium Storage Unit Visual Processing Unit > --- WEAPON (3) ------- (None) > --- INVENTORY (12) --- Improved Heat Sink Improved Targeting Computer Particle Charger Weapon Shielding Peak State ------------ > --- POWER ------------ Light Nuclear Core > --- PROPULSION ------- Aluminum Leg Improved Aluminum Leg > --- UTILITY ---------- Improved Heat Sink Medium Storage Unit Visual Processing Unit > --- WEAPON ----------- EM Pulse Gun EM Pulse Gun EM Pulse Gun > --- INVENTORY -------- Ion Engine Aluminum Leg Aluminum Leg Improved Heat Sink Medium Storage Unit Improved Targeting Computer Particle Charger Weapon Shielding [Rating: 16] Favorites ----------- Power Ion Engine Engine Ion Engine Power Core Light Nuclear Core Propulsion Aluminum Leg Leg Aluminum Leg Utility Medium Storage Unit Device Sensor Array Storage Medium Storage Unit Processor Visual Processing Unit Weapon EM Pulse Gun Energy Gun EM Pulse Gun Build | -11 -10 -9 -9 ------- Run | Scr Mat Mat Sto Slots Evolved 2 | . . 2 . Power . | . . . . Propulsion . | . . . . Utility 1 | . . 1 . Weapon 1 | . . 1 . Parts Attached 27 | 8 11 4 4 Power 3 | 1 1 . 1 Engine 2 | 1 . . 1 Core 1 | . 1 . . Reactor . | . . . . Propulsion 7 | 2 2 1 2 Treads . | . . . . Leg 7 | 2 2 1 2 Wheel . | . . . . Hover . | . . . . Flight . | . . . . Utility 8 | 2 3 2 1 Device 4 | 1 2 1 . Storage 3 | 1 1 . 1 Processor 1 | . . 1 . Hackware . | . . . . Protection . | . . . . Artifact . | . . . . Weapon 9 | 3 5 1 . Energy Gun 9 | 3 5 1 . Energy Cannon . | . . . . Ballistic Gun . | . . . . Ballistic Cannon . | . . . . Launcher . | . . . . Special Weapon . | . . . . Impact Weapon . | . . . . Slashing Weapon . | . . . . Piercing Weapon . | . . . . Special Melee Weapon . | . . . . Unidentified Prototypes . | . . . . Parts Lost 10 | . 1 2 7 Power 2 | . . . 2 Propulsion 3 | . . . 3 Utility 1 | . . . 1 Weapon 4 | . 1 2 1 Highest Loss Streak 9 | . 1 2 9 Average Slot Usage (%) 97 | . 100 99 58 Engine 7 | . 11 . 1 Core 5 | . 2 11 5 Leg 25 | . 28 22 16 Device 12 | . 14 11 9 Storage 12 | . 14 11 12 Processor 4 | . . 11 11 Energy Gun 28 | . 28 32 1 Naked Turns . | . . . . Heaviest Build 20 | 13 18 20 16 Greatest Support 23 | 20 20 23 23 Greatest Overweight (x) 2 | 1 . . 2 Average Overweight (x) . | . . . . Largest Inventory Capacity 12 | 6 8 8 12 Average Capacity 7 | 5 7 8 8 Most Carried 8 | 4 8 8 8 Average Carried 6 | 2 6 7 6 Final Capacity 12 | 6 8 8 12 Final Carried 8 | 3 7 8 4 Class Distribution -------------------- 57% | Mutant 19% | Skirmisher 14% | Scavenger-Skirmisher 8% | Scavenger-Mutant Dominant Class ---------------- Mutant | -10/Materials Skirmisher | -9/Materials Mutant | -9/Storage Resources | -11 -10 -9 -9 ----------- Run | Scr Mat Mat Sto Matter Collected 380 | 250 130 . . Remotely . | . . . . Salvage Created 721 | 98 477 146 . Parts 48 | 4 33 11 . Haulers Intercepted 1 | . 1 . . Recyclers Shooed 3 | . 3 . . Parts Field Recycled . | . . . . Retrieved Matter . | . . . . Parts Self-Destructed . | . . . . Prevented . | . . . . Kills | -11 -10 -9 -9 ------- Run | Scr Mat Mat Sto Combat Hostiles Destroyed 10 | . 7 3 . Guns 9 | . 6 3 . Classes Destroyed 7 | 2 4 1 . Worker 1 | . . 1 . Tunneler 2 | 1 1 . . Hauler 1 | . 1 . . Recycler 4 | 1 2 1 . Watcher 1 | . 1 . . Swarmer 6 | . 3 3 . Grunt 4 | . 4 . . Best Kill Streak 4 | 2 4 3 . Combat Bots Only 3 | . 3 3 . Max Kills in Single Turn 2 | 1 1 2 . Gunslinging . | . . . . Exploded . | . . . . Melee . | . . . . Uniques/NPCs Destroyed . | . . . . Combat | -11 -10 -9 -9 -------- Run | Scr Mat Mat Sto Damage Taken 1506 | . 335 273 898 Core 459 | . 56 12 391 Absorbed by Shields . | . . . . Core Remaining (%) 88 | 100 77 . . Volleys Fired 46 | 6 29 9 2 Largest 3 | 2 2 3 1 Hottest 120 | 90 90 120 40 Shots Fired 97 | 12 58 25 2 Gun 97 | 12 58 25 2 Cannon . | . . . . Launcher . | . . . . Special . | . . . . Kinetic . | . . . . Thermal 40 | 9 31 . . Explosive . | . . . . Electromagnetic 57 | 3 27 25 2 Robot Hit Streak 13 | 3 13 6 7 Robot Miss Streak 2 | 1 2 2 1 Penetration Max . | . . . . Secondary Targets . | . . . . Shots Hit Robots 61 | 8 37 15 1 Core Hits 32 | 3 19 5 5 Critical Hits . | . . . . Critical Kills . | . . . . Critical Parts Destroyed . | . . . . Melee Attacks . | . . . . Impact . | . . . . Slashing . | . . . . Piercing . | . . . . Sneak Attacks . | . . . . Combat Hostiles . | . . . . Follow-up Attacks . | . . . . Damage Inflicted 864 | 101 559 171 33 Guns 805 | 101 523 171 10 Cannons . | . . . . Explosions 36 | . 36 . . Melee . | . . . . Ramming 23 | . . . 23 Kinetic . | . . . . Thermal 338 | 73 265 . . Explosive . | . . . . Electromagnetic 503 | 28 294 171 10 Impact . | . . . . Slashing . | . . . . Piercing . | . . . . Highest Corruption 2 | . 2 . 2 Average Corruption 2 | . 2 . 2 Corruption Purged . | . . . . Effects 5 | . 5 . . Message Errors 2 | . 2 . . Targeting Errors 3 | . 3 . . Overload Shots . | . . . . Overflow Damage . | . . . . Projectiles . | . . . . Explosions . | . . . . Melee . | . . . . Knockbacks . | . . . . Impact . | . . . . Kinetic . | . . . . Secondary . | . . . . Self-Inflicted Damage 5 | . . . 5 Shots . | . . . . Rammed 11 | . . . 11 Targets Rammed 17 | . . . 17 Kicked 6 | . . . 6 Crushed . | . . . . Highest Temperature 198 | 140 198 73 . Average Temperature 57 | 71 60 28 . Received Heat Transfer 546 | . 96 72 378 Siege Activations . | . . . . Robots Corrupted 1 | . 1 . . Combat Hostiles 1 | . 1 . . Parts Fried 2 | . 2 . . Impact Corruptions . | . . . . Robots Melted . | . . . . Combat Hostiles . | . . . . Parts Melted . | . . . . Heat Transferred 831 | 198 633 . . Parts Sabotaged . | . . . . Parts Stolen . | . . . . Parts Stripped . | . . . . Power Chain Reactions 1 | . 1 . . Missiles Intercepted . | . . . . Alert | -11 -10 -9 -9 ------- Run | Scr Mat Mat Sto Peak Influence 174 | 10 174 159 70 Initial 73 | . 6 73 65 Average 71 | 3 72 87 44 Maximum Alert Level . | . . . . Low Security (%) 100 | 100 100 100 100 Level 1 . | . . . . Level 2 . | . . . . Level 3 . | . . . . Level 4 . | . . . . Level 5 . | . . . . High Security . | . . . . Max Security . | . . . . Squads Dispatched 2 | . 1 1 . Investigation 1 | . 1 . . Extermination . | . . . . Reinforcement 1 | . . 1 . Assault . | . . . . Garrison . | . . . . Intercept . | . . . . Construction Impeded . | . . . . Haulers Reinforced . | . . . . Stealth | -11 -10 -9 -9 --------- Run | Scr Mat Mat Sto Distress Signals 3 | . 3 . . Communications Jammed . | . . . . Distress Signals . | . . . . Times Spotted 29 | . 15 9 5 Peak Tracking Total 5 | . 5 4 5 Tactical Retreats 3 | . 3 . . Traps | -11 -10 -9 -9 ------- Run | Scr Mat Mat Sto Traps Triggered 2 | . 2 . . Indirectly . | . . . . Trap Hack Attempts . | . . . . Triggered . | . . . . Disarmed . | . . . . Reprogrammed . | . . . . Reused . | . . . . Traps Extracted . | . . . . Installed . | . . . . Triggered . | . . . . Machines | -11 -10 -9 -9 ---------- Run | Scr Mat Mat Sto Machines Disabled . | . . . . Max in Single Turn . | . . . . Machines Sabotaged . | . . . . Garrisons Compromised . | . . . . Overloaded Fab Kills . | . . . . Fab Network Shutdowns . | . . . . Hacking | -11 -10 -9 -9 --------- Run | Scr Mat Mat Sto Machines Accessed 7 | . 6 1 . Terminals 7 | . 6 1 . Fabricators . | . . . . Repair Stations . | . . . . Recycling Units . | . . . . Scanalyzers . | . . . . Garrison Access . | . . . . Total Hacks 18 | . 14 4 . Successful 11 | . 8 3 . Failed 7 | . 6 1 . Catastrophic 1 | . 1 . . Database Lockouts . | . . . . Manual 18 | . 14 4 . Terminals 18 | . 14 4 . Fabricators . | . . . . Repair Stations . | . . . . Recycling Units . | . . . . Scanalyzers . | . . . . Garrison Access . | . . . . Terminal Hacks 3 | . 2 1 . Zone Layout 3 | . 2 1 . Fabricator Hacks . | . . . . Repair Station Hacks . | . . . . Recycling Unit Hacks . | . . . . Scanalyzer . | . . . . Garrison Access Hacks . | . . . . Unauthorized Hacks 8 | . 6 2 . Terminals 8 | . 6 2 . Track 4 | . 3 1 . Botnet 4 | . 3 1 . Fabricators . | . . . . Repair Stations . | . . . . Recycling Units . | . . . . Scanalyzers . | . . . . Garrison Access . | . . . . Data Cores Recovered . | . . . . Used . | . . . . Hacking Detections 6 | . 5 1 . Full Trace Events . | . . . . Feedback Events . | . . . . Feedback Blocked . | . . . . Robot Schematics Acquired . | . . . . Robots Built . | . . . . Matter . | . . . . Time . | . . . . Total Robot Build Rating . | . . . . Part Schematics Acquired . | . . . . Parts Built . | . . . . Matter . | . . . . Time . | . . . . Total Part Build Rating . | . . . . Parts Repaired . | . . . . Time . | . . . . Parts Recycled . | . . . . Recycled Matter . | . . . . Retrieved Matter . | . . . . Retrieved Components . | . . . . Parts Scanalyzed . | . . . . Part Schematics Acquired . | . . . . Parts Damaged . | . . . . Bothacking | -11 -10 -9 -9 ------------ Run | Scr Mat Mat Sto Used RIF Installer . | . . . . Robots Hacked . | . . . . Non-combat . | . . . . Combat . | . . . . Robot Hacks Applied . | . . . . Relay Couplers Released . | . . . . Robots Rewired . | . . . . Allies Hacked . | . . . . Hacks Repelled . | . . . . Allies | -11 -10 -9 -9 -------- Run | Scr Mat Mat Sto Total Allies . | . . . . Largest Group . | . . . . Highest-Rated Group . | . . . . Highest-Rated Ally . | . . . . Total Orders . | . . . . Ally Attacks . | . . . . Total Damage . | . . . . Kills . | . . . . Allies Corrupted . | . . . . Allies Melted . | . . . . Intel | -11 -10 -9 -9 ------- Run | Scr Mat Mat Sto Robot Analysis Total . | . . . . Derelict Logs Recovered . | . . . . Drone Launches . | . . . . Drone Recoveries . | . . . . Exploration | -11 -10 -9 -9 ------------- Run | Scr Mat Mat Sto Turns Passed 1163 | 72 672 355 64 Spaces Moved 700 | 38 385 252 25 Core 22 | 18 . . 4 Treads . | . . . . Legs 678 | 20 385 252 21 Wheels . | . . . . Hover . | . . . . Flight . | . . . . Fastest Speed 50 | 50 120 120 120 Average Speed 118 | 88 120 120 124 Slowest Speed 150 | 120 120 120 150 Overloaded Moves . | . . . . Propulsion Burnouts . | . . . . Robots Hopped . | . . . . Cave-ins Triggered . | . . . . Exploration Rate (%) 22 | 4 62 16 7 Regions Visited 3 Branch Regions 1 Pre-discovered Areas . | . . . . Known Exits Taken . | . . . . Unknown Exits Taken 3 | 1 1 1 . Scrap Searched . | . . . . Spaces Dug . | . . . . Terrain Destroyed 5 | . 5 . . Melee . | . . . . Projectile . | . . . . AOE 5 | . 5 . . Terrain Rammed . | . . . . Walls Destroyed . | . . . . Machines Disabled . | . . . . Actions | -11 -10 -9 -9 --------- Run | Scr Mat Mat Sto Total 938 | 62 541 287 48 Wait 115 | 5 96 14 . Move 697 | 37 384 251 25 Hop . | . . . . Pick Up 20 | 6 9 5 . Fast Attach 6 | 4 2 . . Attach 11 | 3 2 2 4 Detach . | . . . . Swap 10 | 1 7 2 . Drop 16 | . 12 4 . Fire 46 | 6 29 9 2 Melee . | . . . . Ram . | . . . . Kick 17 | . . . 17 Crush . | . . . . Escape Stasis . | . . . . Rewire . | . . . . Trap . | . . . . Miscellaneous . | . . . . Route ------- -11/Scrapyard -10/Materials (discovered 2 exits: *Mat / [Min]) -9/Materials -9/Storage History --------- Turn | Location | Event 7 | -11/Scrapyard | Discovered new exit (range 16) 73 | -11/Scrapyard | Entered Materials 320 | -10/Materials | Build established: Mutant 732 | -10/Materials | Discovered new exit (range 14) 732 | -10/Materials | Discovered new exit (range 13) 745 | -10/Materials | Entered another Materials area 745 | -9/Materials | Evolved 2 slots: Utility x1, Weapon x1 746 | -9/Materials | Discovered new exit (range 8) 1100 | -9/Materials | Entered Storage 1143 | -9/Storage | Core integrity fell below 50% 1158 | -9/Storage | Core integrity fell below 20% 1164 | -9/Storage | Destroyed by G-47 Trooper with Particle Gun Last Messages --------------- 01132_ Aluminum Leg destroyed. 01132_ Kicked Y-45 Defender out of the way. 01134_ Slammed into Y-45 Defender. 01135_ Imp. Aluminum Leg destroyed. 01135_ Lgt. Nuclear Core destroyed. 01137_ Kicked Y-45 Defender out of the way. 01139_ Slammed into Y-45 Defender. 01139_ Destabilizing: System corrupted (+2). 01140_ Kicked Y-45 Defender out of the way. 01141_ Ion Engine destroyed. 01142_ Slammed into Y-45 Defender. 01149_ Kicked Y-45 Defender out of the way. 01150_ Imp. Heat Sink destroyed. 01150_ Aluminum Leg destroyed. 01154_ Y-45 Defender destroyed. 01158_ Slammed into G-47 Trooper. 01159_ Kicked G-47 Trooper out of the way. 01161_ Slammed into G-47 Trooper. 01161_ Aluminum Leg permanently disabled. 01161_ Destabilizing: Short circuit. Map ----- +----------------------------------------------------+ | ?????????????????????????????????????????????????? | | ?????????????????????????????????????????????????? | | ?????????????????????????????????????????????????? | | ?????????????????????????????????????????????????? | | ?????????????????????????????????????????????????? | | ?????????????????????????????????????????????????? | | ?????????????????????????????????????????????????? | | ?????????????????????????????????????????????????? | | ?????????????????????????????????????????????????? | | ?????????????????????????????????????????????????? | | ?????????????????????????????????????????????????? | | ?????????????????????????????????????????????????? | | ?????????????????????????????????????????????????? | | ?????????????????????????????????????????????????? | | ?????????????????????????????????????????????????? | | ?????????????????????????????????????????????????? | | ?????????????????????????????????????????????????? | | ??????????????????????##?????????????????????????? | | ????????????????????###*######???????????????????? | | ????????????????????#[=%%% #???????????????????? | | ????????????????????# [=% #???????????????????? | | ????????????????????#"""! #???????????????????? | | ????????????????????#""" #???????????????????? | | ????????????????????#""" #???????????????????? | | ????????????????????#""" g #???????????????????? | | ????????????????????#"""g@Y #???????????????????? | | ????????????????????# #???????????????????? | | ??????????????##????# #???????????????????? | | ????????????### " ####+################????????? | | ???????? "%" #????????? | | ???????? " #????????? | | ???????? #????????? | | ??????????##### #####################????????? | | ??????????????#####??????????????????????????????? | | ?????????????????????????????????????????????????? | | ?????????????????????????????????????????????????? | | ?????????????????????????????????????????????????? | | | | | | | | | | | | | | | | | | | | | | | | | | | +----------------------------------------------------+ Best States ------------- Heat Dissipation 42 Energy Generation 14 Energy Capacity 250 Matter Stores 300 Matter Capacity 300 Sight Range 18 Robot Scan Range 10 Terrain Scan Range 16 Terrain Scan Density 10 Evasion (%) 50 Item Schematics ----------------- None Robot Schematics ------------------ None Fabricated ------------ Nothing Alien Tech Used ----------------- None Achievements -------------- None Challenges ------------ None Game ------ Seed RecoilParticleHammer Manual? 0 Play Time 00:13:52 Cumulative 12.1 hours Start 2020.10.04 @ 20:44:11 End 2020.10.04 @ 20:57:45 Sessions 1 Manual Loads 0 Difficulty Rogue Special Mode None Game No. 34 Rogue 34 Adventurer 0 Explorer 0 Win Type - Total 0 Types 0/0/0/0/0/0/0/0/0 Lore% 28 Gallery% 33 Achievement% 25 Wizard Run 0 Options --------- ASCII 0 Keyboard 0 Movement Mouse Keybinds 0 Fullscreen 2 Font 18/SmallcapsGlow Map View 76x50 Tactical HUD 1 Map Filters NONE Filters NONE Steam 1 RUN: 44375050-dac8-45f5-b34e-1d2d00045f8f